bitfinex-derivatives/quotes_SOLF0:USTF0_20250909
["timestamp","ask_amount","ask_price","bid_price","bid_amount"]
[1757389462937,5.26040419,213.88,213.84,0.02988131]
[1757389463243,7.72,213.87,213.84,0.02988131]
[1757389463437,5.26040419,213.88,213.84,0.02988131]
[1757389463639,7.72,213.87,213.84,0.02988131]
[1757389464136,7.72,213.86,213.84,0.02988131]
[1757389464443,7.72,213.85,213.84,0.02988131]
[1757389470048,12.967154,213.85,213.84,0.02988131]
[1757389470845,5.247154,213.85,213.84,0.02988131]
[1757389471444,12.967154,213.85,213.84,0.02988131]
[1757389472251,5.247154,213.85,213.84,0.02988131]
[1757389472456,5.247154,213.86,213.84,0.02988131]
[1757389473157,12.967154,213.86,213.84,0.02988131]
[1757389474859,7.72,213.85,213.84,0.02988131]
[1757389482767,10.10308404,213.85,213.7,90.78065412]
[1757389482973,7.72,213.78,213.68,3.29]
[1757389484068,0.03249115,213.75,213.68,3.29]
[1757389484868,7.50249115,213.75,213.68,3.29]
[1757389490573,7.47,213.73,213.64,3.3]
[1757389491170,0.0315748,213.71,213.64,3.3]
[1757389492373,7.47,213.7,213.64,3.3]
[1757389492574,7.5015748,213.71,213.65,1.35746619]
[1757389495172,0.0315748,213.71,213.7,3.3]
[1757389497676,0.0315748,213.71,213.7,4.65746619]
[1757389502689,0.0315748,213.71,213.66,4.65746619]
[1757389502880,7.47,213.7,213.66,4.65746619]
[1757389503687,8.82746619,213.73,213.66,4.65746619]
[1757389504686,7.47,213.7,213.64,1.35746619]
[1757389505379,1.35746619,213.69,213.62,3.3]
[1757389505586,7.47,213.68,213.62,4.65746619]
[1757389505787,1.35746619,213.67,213.6,1.35746619]
[1757389506089,1.39057455,213.67,213.63,3.3]
[1757389506383,0.03310836,213.67,213.62,1.35746619]
[1757389506584,0.03310836,213.67,213.63,3.3]
[1757389506786,7.50310836,213.67,213.63,3.3]
[1757389507187,0.03310836,213.67,213.62,1.35746619]
[1757389507384,7.47,213.66,213.6,1.35746619]
[1757389508486,0.03310836,213.67,213.62,1.35746619]
[1757389508687,7.50310836,213.67,213.63,3.3]
[1757389509686,7.47,213.66,213.6,1.35746619]
[1757389509883,7.47,213.66,213.59,3.3]
[1757389510088,8.82746619,213.66,213.59,3.3]
[1757389510288,8.82746619,213.66,213.6,1.35746619]
[1757389512093,7.50310836,213.67,213.63,3.3]
[1757389512287,0.03310836,213.67,213.63,4.65746619]
[1757389512489,7.47,213.66,213.63,4.65746619]
[1757389513292,0.03310836,213.67,213.66,3.3]
[1757389518695,0.03310836,213.67,213.65,1.35746619]
[1757389518898,7.53,213.66,213.64,1.35746619]
[1757389519099,7.53,213.66,213.62,1.35746619]
[1757389519297,1.35746619,213.7,213.62,1.35746619]
[1757389519496,0.03165394,213.66,213.64,1.35746619]
[1757389519696,0.03165394,213.66,213.65,3.3]
[1757389519901,7.53,213.71,213.65,3.3]
[1757389522399,7.53,213.69,213.65,3.3]
[1757389522598,0.02987695,213.7,213.65,3.3]
[1757389522805,7.53,213.69,213.65,3.3]
[1757389523002,0.02987695,213.7,213.65,3.3]
[1757389523202,7.53,213.69,213.65,3.3]
[1757389523403,0.02987695,213.7,213.65,3.3]
[1757389523706,7.53,213.69,213.65,3.3]
[1757389524203,0.02987695,213.7,213.65,3.3]
[1757389524403,7.53,213.69,213.65,3.3]
[1757389524605,0.02987695,213.7,213.65,3.3]
[1757389524904,7.53,213.69,213.65,3.3]
[1757389525100,0.02987695,213.7,213.64,1.35746619]
[1757389525703,7.53,213.69,213.64,1.35746619]
[1757389525894,7.55987695,213.7,213.64,1.35746619]
[1757389526900,7.55987695,213.7,213.59,65.64]
[1757389526901,0.02987695,213.7,213.69,3.3]
[1757389529004,0.02987695,213.7,213.69,4.65746619]
[1757389532010,0.02987695,213.7,213.69,1.35746619]
[1757389532201,7.55987695,213.7,213.67,1.35746619]
[1757389532598,7.53,213.69,213.67,1.35746619]
[1757389533610,7.53,213.69,213.65,4.64746619]
[1757389534104,7.53,213.69,213.58,99.07]
[1757389534309,7.53,213.69,213.62,1.35746619]
[1757389534807,7.56125567,213.68,213.64,1.35746619]
[1757389535003,7.53,213.67,213.63,1.35746619]
[1757389535310,7.53,213.67,213.63,4.64746619]
[1757389537311,1.38872186,213.68,213.62,1.35746619]
[1757389537814,1.35746619,213.68,213.62,1.35746619]
[1757389538012,7.53,213.66,213.62,1.35746619]
[1757389538205,7.53,213.66,213.63,3.29]
[1757389538510,7.53,213.66,213.62,1.35746619]
[1757389538816,7.53,213.66,213.62,4.64746619]
[1757389539709,7.53,213.66,213.62,1.35746619]
[1757389539913,7.53,213.66,213.6,1.35746619]
[1757389539914,8.88746619,213.66,213.6,1.35746619]
[1757389540812,8.88746619,213.66,213.58,1.35746619]
[1757389541019,0.0297558,213.67,213.65,1.35746619]
[1757389541319,7.53,213.7,213.65,1.35746619]
[1757389541519,7.53,213.7,213.68,1.35746619]
[1757389541815,7.56127826,213.7,213.68,1.35746619]
[1757389542514,7.53,213.69,213.68,1.35746619]
[1757389543319,0.03127826,213.7,213.68,1.35746619]
[1757389543619,7.30127826,213.7,213.68,1.35746619]
[1757389548015,0.03127826,213.7,213.69,3.28]
[1757389548211,0.03127826,213.7,213.68,1.35746619]
[1757389548417,7.30127826,213.7,213.68,1.35746619]
[1757389548818,0.03127826,213.7,213.68,4.63746619]
[1757389549123,0.03127826,213.7,213.69,3.28]
[1757389549718,0.03127826,213.7,213.68,1.35746619]
[1757389550113,0.03127826,213.7,213.68,4.63746619]
[1757389552324,0.03127826,213.7,213.68,3.28]
[1757389552924,7.30127826,213.7,213.67,5.40029924]
[1757389553125,7.27,213.69,213.65,2.12029924]
[1757389553322,0.03127826,213.7,213.66,3.28]
[1757389553922,0.03127826,213.7,213.65,2.12029924]
[1757389554726,0.03127826,213.7,213.66,3.28]
[1757389555223,7.30127826,213.7,213.62,115.54]
[1757389555429,7.30127826,213.7,213.63,2.12029924]
[1757389561025,7.30127826,213.7,213.62,3.28]
[1757389561326,7.27,213.68,213.57,2.12029924]
[1757389561526,2.12029924,213.64,213.53,3.28]
[1757389561739,7.27,213.63,213.53,3.28]
[1757389561929,0.03003954,213.61,213.53,3.28]
[1757389562125,7.27,213.57,213.47,3.84551799]
[1757389562328,7.27,213.57,213.46,3.28]
[1757389563125,0.03028637,213.54,213.46,3.28]
[1757389563321,0.03028637,213.54,213.49,3.28]
[1757389563527,0.03028637,213.54,213.52,3.28]
[1757389563727,0.03028637,213.54,213.51,2.12029924]
[1757389563929,0.03028637,213.54,213.52,3.28]
[1757389564129,0.03028637,213.54,213.51,2.12029924]
[1757389564633,0.03028637,213.54,213.52,3.28]
[1757389564827,0.03028637,213.54,213.49,3.28]
[1757389565628,0.03028637,213.54,213.48,117.50029924]
[1757389566030,0.03028637,213.54,213.49,3.28]
[1757389566531,0.03028637,213.54,213.48,117.50029924]
[1757389567628,0.03028637,213.54,213.48,2.12029924]
[1757389567834,0.03028637,213.54,213.48,117.58029924]
[1757389568133,0.03028637,213.54,213.49,3.28]
[1757389568936,0.03028637,213.54,213.52,3.28]
[1757389569137,0.03028637,213.54,213.51,2.12029924]
[1757389569337,0.03028637,213.54,213.52,3.28]
[1757389570337,0.03028637,213.54,213.51,2.12029924]
[1757389571033,0.03028637,213.54,213.52,3.28]
[1757389572035,0.03028637,213.54,213.51,117.54029924]
[1757389572238,0.03028637,213.54,213.51,2.12029924]
[1757389572535,0.03028637,213.54,213.51,5.40029924]
[1757389572740,0.03028637,213.54,213.51,3.28]
[1757389572933,7.30028637,213.54,213.47,3.28]
[1757389574034,0.03028637,213.54,213.49,3.3]
[1757389574229,0.03028637,213.54,213.48,2.12029924]
[1757389574738,0.03028637,213.54,213.49,3.3]
[1757389574937,0.03028637,213.54,213.48,2.12029924]
[1757389575337,0.03028637,213.54,213.49,3.3]
[1757389576143,0.03028637,213.54,213.48,5.42029924]
[1757389577234,0.03028637,213.54,213.48,120.86029924]
[1757389577433,0.03028637,213.54,213.48,5.42029924]
[1757389577634,0.03028637,213.54,213.48,120.84029924]
[1757389578436,0.03028637,213.54,213.51,2.12029924]
[1757389578641,0.03028637,213.54,213.52,3.3]
[1757389580041,7.79028637,213.54,213.51,2.12029924]
[1757389581741,7.79028637,213.54,213.49,2.12029924]
[1757389581940,0.03028637,213.54,213.5,3.3]
[1757389582141,0.03028637,213.54,213.53,3.3]
[1757389583747,0.03028637,213.54,213.5,2.12029924]
[1757389584249,0.03028637,213.54,213.51,3.3]
[1757389584441,0.03028637,213.54,213.5,2.12029924]
[1757389584839,0.03028637,213.54,213.51,3.3]
[1757389585645,0.03028637,213.54,213.5,2.12029924]
[1757389586851,0.03028637,213.54,213.51,3.3]
[1757389587143,0.03028637,213.54,213.5,2.12029924]
[1757389587345,7.79028637,213.54,213.51,3.3]
[1757389587947,7.79028637,213.54,213.5,2.12029924]
[1757389588249,7.79028637,213.54,213.5,5.42029924]
[1757389589250,7.76,213.53,213.5,3.3]
[1757389593049,7.76,213.53,213.47,2.12029924]
[1757389601353,7.76,213.53,213.46,3.3]
[1757389601557,7.76,213.53,213.44,115.32]
[1757389601558,7.76,213.53,213.44,117.44029924]
[1757389602557,0.03028637,213.54,213.44,117.44029924]
[1757389602861,7.76,213.53,213.44,117.44029924]
[1757389603457,7.18,213.53,213.44,117.44029924]
[1757389603663,7.18,213.53,213.47,2.12029924]
[1757389603864,7.18,213.53,213.47,5.42029924]
[1757389604062,0.03028637,213.54,213.5,2.12029924]
[1757389604253,0.03028637,213.54,213.51,3.3]
[1757389604759,7.21028637,213.54,213.51,3.3]
[1757389605657,0.03028637,213.54,213.5,2.12029924]
[1757389605862,7.18,213.53,213.5,2.12029924]
[1757389606464,7.18,213.53,213.5,5.42029924]
[1757389607161,7.18,213.53,213.5,2.12029924]
[1757389607368,0.03028637,213.54,213.48,2.15033028]
[1757389607758,7.18,213.53,213.48,2.15033028]
[1757389607958,0.03028637,213.54,213.48,2.15033028]
[1757389608459,7.21028637,213.54,213.48,2.15033028]
[1757389608862,7.21028637,213.54,213.48,0.03003104]
[1757389609062,2.12029924,213.51,213.48,0.03003104]
[1757389609263,7.18,213.5,213.48,0.03003104]
[1757389609466,2.12029924,213.51,213.48,0.03003104]
[1757389609769,7.18,213.5,213.48,0.03003104]
[1757389610272,2.12029924,213.51,213.48,0.03003104]
[1757389610464,7.18,213.5,213.48,0.03003104]
[1757389611272,2.12029924,213.51,213.48,0.03003104]
[1757389611959,7.18,213.5,213.48,0.03003104]
[1757389612158,2.12029924,213.51,213.48,0.03003104]
[1757389612767,7.18,213.5,213.48,0.03003104]
[1757389613158,2.12029924,213.51,213.48,0.03003104]
[1757389613364,7.18,213.5,213.48,0.03003104]
[1757389614165,2.12029924,213.51,213.48,0.03003104]
[1757389614367,8.54026144,213.49,213.48,0.03003104]
[1757389615667,0.03028637,213.54,213.48,3.33003104]
[1757389615867,0.03028637,213.54,213.53,3.3]
[1757389616272,7.18,213.64,213.53,3.76]
[1757389616571,7.18,213.65,213.59,1.36026144]
[1757389616769,7.18,213.67,213.61,1.36026144]
[1757389616973,7.18,213.69,213.65,1.36026144]
[1757389617172,6.60741544,213.74,213.67,1.36026144]
[1757389617372,7.18,213.73,213.67,1.36026144]
[1757389617672,7.18,213.71,213.65,1.36026144]
[1757389619174,7.18,213.71,213.66,1.36026144]
[1757389619375,1.36026144,213.72,213.66,1.36026144]
[1757389619675,1.36026144,213.72,213.66,1.39304783]
[1757389619974,7.18,213.71,213.66,1.39304783]
[1757389620574,1.36026144,213.73,213.66,1.39304783]
[1757389620875,7.18,213.72,213.66,1.39304783]
[1757389621074,5.247154,213.76,213.66,1.39304783]
[1757389621075,7.18,213.7,213.66,0.03278639]
[1757389621781,1.36026144,213.71,213.66,0.03278639]
[1757389621978,7.18,213.68,213.66,0.03278639]
[1757389622171,0.03136958,213.7,213.66,0.03278639]
[1757389622172,8.54026144,213.67,213.66,0.03278639]
[1757389623381,7.18,213.67,213.66,0.03278639]
[1757389623577,7.18,213.69,213.66,0.03278639]
[1757389625767,7.18,213.67,213.66,0.03278639]
[1757389626768,7.18,213.67,213.59,1.36026144]
[1757389626979,1.36026144,213.65,213.59,1.36026144]
[1757389627178,8.54026144,213.65,213.59,1.36026144]
[1757389628081,7.21388178,213.64,213.59,1.36026144]
[1757389628580,7.18,213.63,213.59,1.36026144]
[1757389628773,0.03388178,213.64,213.5,3.34]
[1757389628980,8.54026144,213.63,213.56,1.36026144]
[1757389629477,7.18,213.6,213.5,3.34]
[1757389629677,8.54026144,213.57,213.5,4.70026144]
[1757389629878,8.54026144,213.57,213.52,1.36026144]
[1757389630081,0.03198912,213.56,213.53,3.34]
[1757389632287,0.03198912,213.56,213.55,3.34]
[1757389636690,7.18,213.65,213.55,3.34]
[1757389636887,1.36026144,213.66,213.6,1.36026144]
[1757389637186,7.62,213.65,213.6,1.36026144]
[1757389637581,1.36026144,213.66,213.6,1.36026144]
[1757389637781,7.62,213.65,213.6,1.36026144]
[1757389637986,7.62,213.65,213.6,1.3944625]
[1757389638786,8.98026144,213.66,213.6,1.3944625]
[1757389638987,8.98026144,213.66,213.6,0.03420106]
[1757389639393,150.0,213.74,213.63,3.32]
[1757389639692,7.62,213.73,213.66,1.36026144]
[1757389640196,123.21060629,213.8,213.7,1.36026144]
[1757389640197,1.36026144,213.77,213.7,1.36026144]
[1757389640389,7.62,213.76,213.7,1.36026144]
[1757389640586,8.98026144,213.76,213.7,1.36026144]
[1757389642094,8.98026144,213.76,213.69,1.36026144]
[1757389643896,8.98026144,213.76,213.65,3.32]
[1757389643897,7.62,213.73,213.66,1.36026144]
[1757389644705,1.36026144,213.75,213.68,1.36026144]
[1757389644909,7.62,213.74,213.68,1.36026144]
[1757389645695,202.92,213.79,213.7,1.36026144]
[1757389645892,1.36026144,213.77,213.7,1.36026144]
[1757389646097,7.62,213.78,213.72,1.36026144]
[1757389647399,151.36026144,213.79,213.73,0.03506038]
[1757389647702,7.62,213.78,213.73,0.03506038]
[1757389648303,151.36026144,213.79,213.73,0.03506038]
[1757389649204,7.62,213.78,213.73,0.03506038]
[1757389649807,151.36026144,213.79,213.73,0.03506038]
[1757389650002,7.62,213.78,213.73,0.03506038]
[1757389650399,151.36026144,213.79,213.73,0.03506038]
[1757389650597,1.36026144,213.79,213.73,0.03506038]
[1757389651103,7.62,213.78,213.73,0.03506038]
[1757389651504,115.28,213.81,213.73,0.03506038]
[1757389651800,1.36026144,213.78,213.73,0.03506038]
[1757389652206,7.62,213.77,213.73,0.03506038]
[1757389652609,1.36026144,213.78,213.73,0.03506038]
[1757389652907,7.62,213.77,213.73,0.03506038]
[1757389653307,1.36026144,213.78,213.73,0.03506038]
[1757389653909,7.62,213.77,213.73,0.03506038]
[1757389654908,1.36026144,213.78,213.73,0.03506038]
[1757389655101,7.62,213.77,213.73,0.03506038]
[1757389655608,1.36026144,213.78,213.73,0.03506038]
[1757389655809,7.62,213.8,213.73,0.03506038]
[1757389656002,1.36026144,213.79,213.73,0.03506038]
[1757389656202,7.62,213.78,213.73,0.03506038]
[1757389656399,7.62,213.77,213.73,0.03506038]
[1757389656598,150.0,213.78,213.73,0.03506038]
[1757389656806,7.62,213.77,213.73,0.03506038]
[1757389657006,8.98026144,213.77,213.73,0.03506038]
[1757389657310,7.62,213.76,213.73,0.03506038]
[1757389657509,1.36026144,213.77,213.73,0.03506038]
[1757389657707,7.62,213.76,213.73,0.03506038]
[1757389657909,1.36026144,213.77,213.73,0.03506038]
[1757389658111,7.62,213.76,213.73,0.03506038]
[1757389659912,157.62,213.78,213.73,3.35506038]
[1757389660110,7.62,213.77,213.73,3.35506038]
[1757389660704,7.62,213.77,213.73,0.03506038]
[1757389660900,150.0,213.78,213.73,0.03506038]
[1757389661311,7.62,213.77,213.73,0.03506038]
[1757389661506,150.0,213.78,213.73,0.03506038]
[1757389661909,7.62,213.77,213.73,0.03506038]
[1757389662512,151.36026144,213.78,213.73,0.03506038]
[1757389663109,7.62,213.77,213.73,0.03506038]
[1757389663311,151.36026144,213.78,213.73,0.03506038]
[1757389663516,7.75,213.77,213.73,0.03506038]
[1757389663912,151.36026144,213.78,213.73,0.03506038]
[1757389664213,157.75,213.77,213.73,0.03506038]
[1757389664613,7.75,213.75,213.73,0.03506038]
[1757389665016,1.36026144,213.76,213.73,0.03506038]
[1757389665711,7.75,213.75,213.73,0.03506038]
[1757389665907,1.36026144,213.76,213.73,0.03506038]
[1757389666312,7.75,213.75,213.73,0.03506038]
[1757389667014,1.36026144,213.76,213.73,0.03506038]
[1757389667318,7.75,213.75,213.73,0.03506038]
[1757389667914,9.11026144,213.74,213.73,0.03506038]
[1757389672713,7.75,213.74,213.73,0.03506038]
[1757389673616,7.75,213.76,213.73,0.03506038]
[1757389674019,7.75,213.76,213.73,1.39532182]
[1757389674409,157.75,213.77,213.73,4.71532182]
[1757389675311,7.75,213.77,213.73,4.71532182]
[1757389675517,7.75,213.79,213.73,4.71532182]
[1757389676420,7.75,213.79,213.73,3.35506038]
[1757389676623,7.75,213.79,213.73,0.03506038]
[1757389678530,7.75,213.79,213.74,2.11975431]
[1757389678716,7.75,213.79,213.75,3.32]
[1757389679823,7.75,213.79,213.74,2.11975431]
[1757389680116,115.2,213.8,213.74,2.11975431]
[1757389680323,7.75,213.79,213.73,0.03506038]
[1757389683512,150.0,213.81,213.74,5.43975431]
[1757389684719,7.75,213.83,213.74,5.43975431]
[1757389685723,7.75,213.83,213.73,0.03506038]
[1757389685724,7.89060629,213.89,213.78,3.32]
[1757389685928,7.89060629,213.89,213.73,316.69481469]
[1757389685929,7.75,213.9,213.8,3.32]
[1757389686521,7.75,213.9,213.83,0.03595273]
[1757389689732,9.86975431,213.9,213.83,0.03595273]
[1757389690432,7.75,213.9,213.83,0.03595273]
[1757389691232,7.75,213.88,213.83,0.03595273]
[1757389691730,150.0,213.89,213.83,0.03595273]
[1757389691922,7.75,213.88,213.83,0.03595273]
[1757389692432,150.0,213.89,213.83,0.03595273]
[1757389692631,7.75,213.88,213.83,0.03595273]
[1757389692927,150.0,213.89,213.83,0.03595273]
[1757389693133,7.75,213.88,213.83,0.03595273]
[1757389693433,7.27,213.88,213.83,0.03595273]
[1757389694430,157.27,213.89,213.83,0.03595273]
[1757389694737,157.27,213.89,213.83,3.35595273]
[1757389696332,157.27,213.89,213.83,0.03595273]
[1757389700935,7.27,213.89,213.83,0.03595273]
[1757389704335,7.27,213.96,213.86,3.32]
[1757389704533,7.27,213.96,213.89,2.11975431]
[1757389704838,150.0,213.97,213.89,2.11975431]
[1757389704839,7.27,213.92,213.89,2.11975431]
[1757389705138,7.27,213.92,213.9,0.02968257]
[1757389706036,0.03064061,213.93,213.9,0.02968257]
[1757389706237,7.27,213.92,213.9,0.02968257]
[1757389707337,0.03064061,213.93,213.9,0.02968257]
[1757389707534,7.27,213.92,213.9,0.02968257]
[1757389708241,0.03064061,213.93,213.9,0.02968257]
[1757389708430,7.27,213.92,213.9,0.02968257]
[1757389708631,0.03064061,213.93,213.9,0.02968257]
[1757389709231,7.27,213.92,213.9,0.02968257]
[1757389709838,0.03064061,213.93,213.9,0.02968257]
[1757389710544,7.27,213.92,213.9,0.02968257]
[1757389711248,0.03064061,213.93,213.9,0.02968257]
[1757389711841,7.27,213.92,213.9,0.02968257]
[1757389712444,0.03064061,213.93,213.9,0.02968257]
[1757389712643,7.27,213.92,213.9,0.02968257]
[1757389712944,0.03064061,213.93,213.9,0.02968257]
[1757389713142,7.27,213.92,213.9,0.02968257]
[1757389713346,0.03064061,213.93,213.9,0.02968257]
[1757389713548,7.27,213.92,213.9,0.02968257]
[1757389714446,0.03064061,213.93,213.9,0.02968257]
[1757389714842,7.27,213.92,213.9,0.02968257]
[1757389715547,0.03064061,213.93,213.9,0.02968257]
[1757389715938,7.27,213.92,213.9,0.02968257]
[1757389716144,0.03064061,213.93,213.9,0.02968257]
[1757389716345,7.27,213.92,213.9,0.02968257]
[1757389717644,0.03064061,213.93,213.9,0.02968257]
[1757389718048,7.27,213.92,213.9,0.02968257]
[1757389718642,0.03064061,213.93,213.9,0.02968257]
[1757389718840,7.27,213.92,213.9,0.02968257]
[1757389719941,0.03064061,213.93,213.9,0.02968257]
[1757389720843,7.27,213.92,213.9,0.02968257]
[1757389721346,0.03064061,213.93,213.9,0.02968257]
[1757389721551,7.27,213.92,213.9,0.02968257]
[1757389721745,0.03064061,213.93,213.9,0.02968257]
[1757389722350,7.27,213.92,213.9,0.02968257]
[1757389722743,0.03064061,213.93,213.9,0.02968257]
[1757389723045,7.27,213.92,213.9,0.02968257]
[1757389723244,0.03064061,213.93,213.9,0.02968257]
[1757389723642,7.29,213.92,213.9,0.02968257]
[1757389723945,0.03064061,213.93,213.9,0.02968257]
[1757389724340,7.29,213.92,213.9,0.02968257]
[1757389724949,0.03064061,213.93,213.9,0.02968257]
[1757389725149,7.29,213.92,213.9,0.02968257]
[1757389725345,0.03064061,213.93,213.9,0.02968257]
[1757389726652,7.29,213.92,213.9,0.02968257]
[1757389726952,0.03064061,213.93,213.9,0.02968257]
[1757389727450,7.29,213.92,213.9,0.02968257]
[1757389727750,0.03064061,213.93,213.9,0.02968257]
[1757389727946,7.29,213.92,213.9,0.02968257]
[1757389728452,0.03064061,213.93,213.9,0.02968257]
[1757389729055,7.29,213.92,213.9,0.02968257]
[1757389731257,7.32064061,213.93,213.91,3.31]
[1757389731553,0.03064061,213.93,213.92,5.42975431]
[1757389731950,0.03064061,213.93,213.92,2.11975431]
[1757389732361,0.03064061,213.93,213.92,5.42975431]
[1757389734051,7.29,214.01,213.92,5.88975431]
[1757389734247,7.29,214.01,213.95,2.11975431]
[1757389735354,157.89060629,214.03,213.96,0.03228062]
[1757389735556,7.29,214.02,213.96,0.03228062]
[1757389736359,7.29,214.02,213.97,1.35368796]
[1757389736557,157.89060629,214.03,213.96,0.03228062]
[1757389736852,157.89060629,214.03,213.97,1.35368796]
[1757389737053,8.64368796,214.02,213.96,0.03228062]
[1757389739053,7.29,213.97,213.96,0.03228062]
[1757389740864,8.64368796,213.97,213.89,1.35368796]
[1757389741961,8.64368796,213.97,213.91,0.0318833]
[1757389742555,7.29,213.92,213.91,0.0318833]
[1757389751262,7.29,213.92,213.79,3.86270882]
[1757389751468,1.35368796,213.9,213.82,1.35368796]
[1757389751669,7.29,213.89,213.82,1.35368796]
[1757389752666,0.03355487,213.88,213.82,1.35368796]
[1757389758671,0.03355487,213.88,213.82,4.73368796]
[1757389760369,7.61355487,213.88,213.84,4.73368796]
[1757389760669,0.03355487,213.88,213.84,1.35368796]
[1757389760869,0.03355487,213.88,213.81,3.38]
[1757389761069,0.03355487,213.88,213.85,4.73368796]
[1757389761271,7.61355487,213.88,213.85,4.73368796]
[1757389762669,0.03355487,213.88,213.85,4.73368796]
[1757389762874,7.58,213.87,213.85,4.73368796]
[1757389763464,7.58,213.87,213.85,1.35368796]
[1757389764973,0.03355487,213.88,213.85,4.73368796]
[1757389765478,7.61355487,213.88,213.85,4.73368796]
[1757389767580,121.02009513,213.99,213.88,3.38]
[1757389767581,7.58,213.98,213.88,3.38]
[1757389767776,7.58,214.0,213.94,1.35368796]
[1757389767978,7.58,214.0,213.97,3.38]
[1757389768887,1.35368796,214.04,213.96,1.38502884]
[1757389769075,7.58,214.03,213.96,1.38502884]
[1757389769382,7.58,214.03,213.96,0.03134088]
[1757389769579,7.58,214.03,213.96,1.38502884]
[1757389770370,7.58,214.01,213.96,0.03134088]
[1757389771480,1.35368796,214.02,213.96,1.38502884]
[1757389772181,7.58,214.01,213.96,1.38502884]
[1757389772383,7.58,214.05,213.96,1.38502884]
[1757389772580,7.58,214.01,213.96,1.38502884]
[1757389773083,1.35368796,214.02,213.96,1.38502884]
[1757389773380,7.58,214.01,213.96,0.03134088]
[1757389773885,1.35368796,214.0,213.96,0.03134088]
[1757389774070,7.58,213.99,213.96,0.03134088]
[1757389774272,1.35368796,214.0,213.96,0.03134088]
[1757389774479,7.58,213.99,213.96,0.03134088]
[1757389775072,7.58,213.97,213.96,0.03134088]
[1757389779476,8.93368796,213.98,213.96,0.03134088]
[1757389779680,7.58,213.98,213.96,0.03134088]
[1757389780181,15.47060629,214.04,213.97,3.4]
[1757389780488,7.58,214.04,213.97,4.75368796]
[1757389781183,8.93368796,214.04,213.97,4.75368796]
[1757389781384,7.58,214.04,213.97,4.75368796]
[1757389783091,15.47060629,214.09,213.96,0.03134088]
[1757389783293,7.58,214.09,214.02,1.35368796]
[1757389783884,7.58,214.09,214.03,3.40451182]
[1757389784387,7.89060629,214.15,214.04,1.35368796]
[1757389784590,1.35368796,214.13,214.05,3.37]
[1757389784978,7.52,214.12,214.05,4.72368796]
[1757389785484,1.35368796,214.13,214.07,0.03085563]
[1757389785684,1.35368796,214.11,214.07,0.03085563]
[1757389786079,7.89060629,214.15,214.07,3.40085563]
[1757389786385,7.52,214.1,214.07,0.03085563]
[1757389786776,1.35368796,214.11,214.07,0.03085563]
[1757389786982,7.52,214.1,214.07,0.03085563]
[1757389787581,1.35368796,214.11,214.07,0.03085563]
[1757389787786,7.52,214.08,214.07,0.03085563]
[1757389789081,7.89060629,214.14,214.07,0.03085563]
[1757389789280,7.52,214.09,214.07,0.03085563]
[1757389790494,7.52,214.11,214.07,0.03085563]
[1757389790694,150.0,214.12,214.07,0.03085563]
[1757389790695,8.87368796,214.1,214.07,0.03085563]
[1757389790889,7.52,214.09,214.07,0.03085563]
[1757389792092,150.0,214.12,214.07,0.03085563]
[1757389792391,7.52,214.09,214.07,0.03085563]
[1757389792890,1.35368796,214.1,214.07,0.03085563]
[1757389794492,7.52,214.09,214.07,0.03085563]
[1757389794690,1.35368796,214.1,214.07,0.03085563]
[1757389794895,7.52,214.09,214.07,0.03085563]
[1757389795897,1.35368796,214.11,214.07,0.03085563]
[1757389796097,7.52,214.1,214.07,0.03085563]
[1757389796591,9.63370544,214.11,214.07,0.03085563]
[1757389797696,115.68,214.1,214.07,0.03085563]
[1757389797896,7.52,214.09,214.07,0.03085563]
[1757389798695,115.68,214.1,214.07,0.03085563]
[1757389799897,7.52,214.09,214.07,0.03085563]
[1757389800998,115.68,214.1,214.07,0.03085563]
[1757389801195,7.52,214.09,214.07,0.03085563]
[1757389801499,115.68,214.1,214.07,0.03085563]
[1757389801800,157.52,214.09,213.99,3.37]
[1757389802100,7.52,214.07,213.95,3.4]
[1757389802301,7.52,214.04,213.95,3.4]
[1757389802997,0.03519201,214.02,213.96,2.11370544]
[1757389803190,0.03519201,214.02,213.97,3.4]